fUST/lending_fUST_20260123
["ID","MTS","AMOUNT","RATE_DAILY","PERIOD"]
[403130442,1769179922660,-1009.89,0.000306,14]
[403130443,1769179922669,-391.1261238,0.00030601,2]
[403130444,1769179922678,-4247.38008044,0.00030625,2]
[403130445,1769179922687,-750.0,0.00030685,5]
[403130446,1769179922696,-750.0,0.00030685,5]
[403130447,1769179922705,-10000.0,0.0003087,7]
[403130448,1769179922715,-166.78289986,0.00030961,15]
[403130449,1769179922724,-306.41851137,0.0003099,2]
[403130450,1769179922733,-600.0,0.00031,2]
[403130451,1769179922743,-323.0,0.00031,3]
[403130452,1769179922752,-1434.61887753,0.00031,120]
[403130453,1769179922761,-350.0,0.00031,60]
[403130454,1769179922770,-576.65930094,0.00031,30]
[403130455,1769179922782,-1432.25697,0.00031,120]
[403130456,1769179922791,-160.30811341,0.00031,120]
[403130457,1769179922801,-364.68706713,0.00031,120]
[403130458,1769179922811,-279.21863888,0.00031,120]
[403130459,1769179922820,-179.68101881,0.00031,120]
[403130460,1769179922830,-164.03292996,0.00031,120]
[403130461,1769179922839,-168.86656406,0.00031,120]
[403130462,1769179922849,-165.03423317,0.00031,120]
[403130463,1769179922859,-196.25594726,0.00031,120]
[403130464,1769179922869,-779.0,0.00031,2]
[403130465,1769179922878,-12346.0657678,0.0003112,2]
[403130466,1769179922887,-209.03,0.000312,10]
[403130467,1769179922896,-211.2084,0.000312,30]
[403130468,1769179922907,-850.0,0.00031233,5]
[403130469,1769179922917,-850.0,0.00031233,5]
[403130470,1769179922927,-220.70411,0.000314,120]
[403130471,1769179922936,-4247.38008044,0.00031458,2]
[403130472,1769179922946,-635.62,0.000315,20]
[403130473,1769179922955,-1000.0,0.00031503,30]
[403130474,1769179922965,-492.0,0.00031503,30]
[403130475,1769179922974,-710.96899555,0.00031506,120]
[403130476,1769179922983,-369.89,0.000316,7]
[403130477,1769179922993,-950.0,0.00031781,5]
[403130478,1769179923002,-436.42714954,0.00031781,5]
[403130479,1769179923012,-1525427.83748256,0.00031786,7]
[403130480,1769179925383,-543.0,0.00031786,7]
[403130481,1769179925544,-5000.0,0.00012226,2]
[403130482,1769179925554,-2303.75527081,0.00023333,10]
[403130483,1769179925565,-2060.35663519,0.00023333,10]
[403130484,1769179925670,-11200.01633682,0.00031786,7]
[403130485,1769179925681,-302.89409655,0.00031786,7]
[403130486,1769179925692,-8880.0,0.00031786,7]
[403130487,1769179926343,-1107.92671156,0.00031786,7]
[403130501,1769179941681,129.91757386,0.0001,2]
[403130502,1769179941740,10000.01,0.0001,2]
[403130503,1769179941799,10000.01,0.0001,2]
[403130504,1769179941853,10000.01,0.0001,2]
[403130505,1769179941909,10000.01,0.0001,2]
[403130506,1769179941966,10000.01,0.0001,2]
[403130507,1769179942024,4158.40242614,0.0001,2]
[403130508,1769179945767,5000.0,0.00011984,2]
[403130509,1769179961067,841.60757386,0.00011984,2]
[403130510,1769179968889,5000.0,0.00011933,2]
[403130511,1769179976104,-909.61981853,0.00011984,2]
[403130512,1769179976128,-2270.55878348,0.00012104,2]
[403130513,1769179976155,-207.44955269,0.00012165,2]
[403130514,1769179976186,-114334.946835,0.00012249,2]
[403130515,1769179976210,-252.93,0.000123,2]
[403130565,1769180046546,-5000.0,0.00012103,2]
[403130566,1769180046571,-5000.0,0.00012225,2]
[403130567,1769180046595,-300.0,0.00012347,2]
[403130568,1769180046619,-300.0,0.00012347,2]
[403130569,1769180046645,-515.03581206,0.00012348,2]
[403130570,1769180046670,-500.0,0.00012348,2]
[403130571,1769180046694,-500.0,0.00012348,2]
[403130572,1769180046721,-500.0,0.00012348,2]
[403130573,1769180046745,-225.60407506,0.00012348,2]
[403130574,1769180046769,-500.0,0.00012348,2]
[403130575,1769180046795,-500.0,0.00012348,2]
[403130576,1769180046818,-500.0,0.00012348,2]
[403130577,1769180046843,-500.0,0.00012348,2]
[403130578,1769180046868,-500.0,0.00012348,2]
[403130579,1769180046893,-500.0,0.00012348,2]
[403130580,1769180046917,-500.0,0.00012348,2]
[403130581,1769180047099,-476.81480646,0.00012348,2]
[403130582,1769180047124,-500.0,0.00012348,2]
[403130583,1769180047151,-500.0,0.00012348,2]
[403130584,1769180047182,-500.0,0.00012348,2]
[403130585,1769180047209,-500.0,0.00012348,2]
[403130586,1769180047239,-500.0,0.00012348,2]
[403130587,1769180047265,-500.0,0.00012348,2]
[403130588,1769180047291,-480.64068869,0.00012348,2]
[403130589,1769180047318,-500.0,0.00012348,2]
[403130590,1769180047343,-500.0,0.00012348,2]
[403130591,1769180047367,-500.0,0.00012348,2]
[403130592,1769180047392,-500.0,0.00012348,2]
[403130593,1769180047416,-500.0,0.00012348,2]
[403130594,1769180047441,-500.0,0.00012348,2]
[403130595,1769180047468,-500.0,0.00012348,2]
[403130596,1769180047494,-500.0,0.00012348,2]
[403130597,1769180047520,-500.0,0.00012348,2]
[403130598,1769180047546,-500.0,0.00012348,2]
[403130599,1769180047571,-500.0,0.00012348,2]
[403130600,1769180047596,-500.0,0.00012348,2]
[403130601,1769180047621,-500.0,0.00012348,2]
[403130602,1769180047646,-500.0,0.00012348,2]
[403130603,1769180047671,-500.0,0.00012348,2]
[403130604,1769180047696,-500.0,0.00012348,2]
[403130605,1769180047721,-500.0,0.00012348,2]
[403130606,1769180047745,-500.0,0.00012348,2]
[403130607,1769180047770,-500.0,0.00012348,2]
[403130608,1769180047795,-500.0,0.00012348,2]
[403130609,1769180047821,-500.0,0.00012348,2]
[403130610,1769180047847,-471.58988244,0.00012348,2]
[403130611,1769180047875,-500.0,0.00012348,2]
[403130612,1769180047902,-500.0,0.00012348,2]
[403130613,1769180047928,-500.0,0.00012348,2]
[403130614,1769180047955,-500.0,0.00012348,2]
[403130615,1769180047981,-500.0,0.00012348,2]
[403130616,1769180048007,-500.0,0.00012348,2]
[403130617,1769180048035,-500.0,0.00012348,2]
[403130618,1769180048061,-500.0,0.00012348,2]
[403130619,1769180048088,-500.0,0.00012348,2]
[403130620,1769180048113,-500.0,0.00012348,2]
[403130621,1769180048138,-500.0,0.00012348,2]
[403130622,1769180048165,-500.0,0.00012348,2]
[403130623,1769180048195,-500.0,0.00012348,2]
[403130624,1769180048224,-500.0,0.00012348,2]
[403130625,1769180048250,-500.0,0.00012348,2]
[403130626,1769180048276,-500.0,0.00012348,2]
[403130627,1769180048302,-500.0,0.00012348,2]
[403130628,1769180048327,-500.0,0.00012348,2]
[403130629,1769180048353,-500.0,0.00012348,2]
[403130630,1769180048378,-500.0,0.00012348,2]
[403130631,1769180048406,-500.0,0.00012348,2]
[403130632,1769180048431,-500.0,0.00012348,2]
[403130633,1769180048457,-500.0,0.00012348,2]
[403130634,1769180048483,-500.0,0.00012348,2]
[403130635,1769180048509,-500.0,0.00012348,2]
[403130636,1769180048535,-500.0,0.00012348,2]
[403130637,1769180048561,-500.0,0.00012348,2]
[403130638,1769180051548,500.0,0.00012348,2]
[403130640,1769180051592,500.0,0.00012348,2]
[403130641,1769180051627,500.0,0.00012348,2]
[403130643,1769180051657,500.0,0.00012348,2]
[403130644,1769180051689,500.0,0.00012348,2]
[403130645,1769180051726,500.0,0.00012348,2]
[403130647,1769180051764,500.0,0.00012348,2]
[403130648,1769180051824,500.0,0.00012348,2]
[403130650,1769180051854,500.0,0.00012348,2]
[403130651,1769180051883,500.0,0.00012348,2]
[403130652,1769180051914,500.0,0.00012348,2]
[403130654,1769180051946,500.0,0.00012348,2]
[403130655,1769180051988,500.0,0.00012348,2]
[403130656,1769180052019,500.0,0.00012348,2]
[403130658,1769180052054,500.0,0.00012348,2]
[403130659,1769180052089,500.0,0.00012348,2]
[403130660,1769180052119,500.0,0.00012348,2]
[403130662,1769180052151,500.0,0.00012348,2]
[403130663,1769180052192,297.15898824,0.00012348,2]
[403130664,1769180052233,500.0,0.00012348,2]
[403130666,1769180052382,500.0,0.00012348,2]
[403130667,1769180052417,500.0,0.00012348,2]
[403130668,1769180052451,500.0,0.00012348,2]
[403130669,1769180052486,500.0,0.00012348,2]
[403130670,1769180052517,500.0,0.00012348,2]
[403130671,1769180052548,500.0,0.00012348,2]
[403130672,1769180052583,500.0,0.00012348,2]
[403130673,1769180052634,500.0,0.00012348,2]
[403130681,1769180113708,241.43,8.583e-05,2]
[403130682,1769180114147,362.14,9.299e-05,2]
[403130683,1769180114669,482.85,0.00010014,2]
[403130684,1769180115078,603.56,0.00010729,2]
[403130685,1769180115477,724.28,0.00011444,2]
[403130690,1769180177373,7012.019358,0.00011422,2]
[403130692,1769180189882,150.0,7.872e-05,2]
[403130693,1769180190283,179.97,8.588e-05,2]
[403130694,1769180190678,243.760642,9.304e-05,2]
[403130695,1769180190754,26.199358,9.304e-05,2]
[403130696,1769180191117,359.94,0.00010019,2]
[403130697,1769180191536,449.93,0.00010735,2]
[403130698,1769180191955,539.91,0.00011451,2]
[403130736,1769180255452,5000.0,0.00011916,2]
[403130737,1769180266205,150.0,8.574e-05,2]
[403130738,1769180266609,195.51,9.288e-05,2]
[403130739,1769180267598,260.68,0.00010003,2]
[403130740,1769180268022,325.86,0.00010717,2]
[403130741,1769180268422,391.03,0.00011432,2]
[403130742,1769180277969,637.90495197,0.00011916,2]
[403130758,1769180316713,1663.04569003,0.00011409,2]
[403130759,1769180316791,8336.95430997,0.00011409,2]
[403130791,1769180342411,193.33,0.0001,2]
[403130792,1769180342800,241.66,0.00010714,2]
[403130793,1769180343269,289.99,0.00011428,2]
[403130824,1769180412496,388.94,7.834e-05,2]
[403130825,1769180412910,549.13569003,8.546e-05,2]
[403130826,1769180412992,228.73430997,8.546e-05,2]
[403130827,1769180413346,1166.81,9.258e-05,2]
[403130828,1769180413783,1555.75,9.971e-05,2]
[403130829,1769180414223,1944.68,0.00010683,2]
[403130830,1769180414621,2333.62,0.00011395,2]
[403130836,1769180429359,1398.9134311,0.00011261,2]
[403130841,1769180443034,5000.0,0.00011917,2]
[403130844,1769180452855,-278.22,0.00012,2]
[403130845,1769180452881,-589.0,0.00012,2]
[403130846,1769180452907,-500.0,0.00012,2]
[403130847,1769180452933,-500.0,0.00012,2]
[403130848,1769180453006,-2612.21783645,0.00012107,2]
[403130851,1769180465378,3601.0965689,0.00011917,2]
[403130852,1769180465453,1398.9034311,0.00011917,2]
[403130862,1769180482178,-110.33216355,0.00012107,2]
[403130863,1769180482206,-201.88401546,0.00012221,2]
[403130864,1769180482233,-300.0,0.00012273,2]
[403130865,1769180482296,-642.78764198,0.00012274,2]
[403130866,1769180489908,250.33,7.716e-05,2]
[403130867,1769180490317,500.67,8.418e-05,2]
[403130868,1769180490738,751.0,9.119e-05,2]
[403130869,1769180491160,1001.33,9.821e-05,2]
[403130870,1769180492133,1251.67,0.00010522,2]
[403130871,1769180492599,1502.0,0.00011224,2]
[403130872,1769180503806,646.83,0.00011917,2]
[403130873,1769180503838,-330.11884064,0.00011925,2]
[403130874,1769180505693,-1422.22115936,0.00011925,2]
[403130882,1769180518664,811.58690884,0.00011925,2]
[403130895,1769180526483,330.10752351,0.00011925,2]
[403130929,1769180542084,5000.0,0.00011925,2]
[403130975,1769180569402,163.03,7.776e-05,2]
[403130976,1769180569792,326.07,8.483e-05,2]
[403130977,1769180570214,489.1,9.19e-05,2]
[403130978,1769180570610,35.67324893,9.896e-05,2]
[403130979,1769180570677,616.45675107,9.896e-05,2]
[403130980,1769180571012,815.16,0.00010603,2]
[403130981,1769180571483,978.2,0.0001131,2]
[403130983,1769180587313,7590.19324893,0.00011292,2]
[403130984,1769180587385,6540.37303197,0.00011292,2]
[403130985,1769180606462,3496.75952902,0.00011925,2]
[403130986,1769180614210,4353.17,0.00011925,2]
[403130987,1769180647889,161.63,7.756e-05,2]
[403130988,1769180648345,323.25,8.462e-05,2]
[403130989,1769180648955,484.88,9.167e-05,2]
[403130990,1769180649392,646.51,9.872e-05,2]
[403130991,1769180649818,808.13,0.00010577,2]
[403130994,1769180650232,969.76,0.00011282,2]
[403130996,1769180656282,-175.48463812,0.00011987,2]
[403130997,1769180657833,-184.43475781,0.00011987,2]
[403130998,1769180660547,-300.00328744,0.00011987,2]
[403130999,1769180663260,-233.98461083,0.00011987,2]
[403131001,1769180686268,2252.68,0.00011925,2]
[403131002,1769180686339,2747.32,0.00011925,2]
[403131003,1769180700880,-160.93662789,0.00011987,2]
[403131006,1769180708643,5000.0,0.00011925,2]
[403131007,1769180716400,2252.69,0.00011925,2]
[403131008,1769180716480,1885.3329686,0.00011925,2]
[403131009,1769180724674,150.0,8.39e-05,2]
[403131010,1769180725135,267.43,9.153e-05,2]
[403131011,1769180725530,401.15,9.916e-05,2]
[403131012,1769180730092,534.87,0.00010678,2]
[403131013,1769180733351,668.59,0.00011441,2]
[403131014,1769180747325,3469.99619773,0.00011925,2]
[403131015,1769180754240,1432.07970287,0.00011917,2]
[403131016,1769180809361,238.06,8.782e-05,2]
[403131017,1769180809684,357.09,9.514e-05,2]
[403131018,1769180810076,476.12,0.00010245,2]
[403131019,1769180810489,119.2911308,0.00010977,2]
[403131020,1769180810559,475.8588692,0.00010977,2]
[403131021,1769180810892,714.18,0.00011709,2]
[403131022,1769180886718,150.0,8.046e-05,2]
[403131023,1769180887106,177.46,8.778e-05,2]
[403131024,1769180887524,266.2,9.509e-05,2]
[403131025,1769180887939,354.93,0.00010241,2]
[403131026,1769180888343,443.66,0.00010972,2]
[403131027,1769180888802,532.39,0.00011704,2]
[403131028,1769180926082,5000.0,0.00011925,2]
[403131029,1769180948314,1885.3311308,0.00011925,2]
[403131030,1769180948388,3114.6688692,0.00011925,2]
[403131031,1769180963181,150.0,8.05e-05,2]
[403131032,1769180963615,150.0,8.782e-05,2]
[403131033,1769180964048,192.71,9.514e-05,2]
[403131034,1769180964444,256.95,0.00010245,2]
[403131035,1769180964854,321.18,0.00010977,2]
[403131036,1769180965269,385.42,0.00011709,2]
[403131037,1769180970664,5000.0,0.00011925,2]
[403131038,1769180993164,429.0811308,0.00011925,2]
[403131039,1769180993232,4570.9188692,0.00011925,2]
[403131040,1769181015438,5000.0,0.00011925,2]
[403131075,1769181032612,-205.9877537,0.0001213,2]
[403131076,1769181032622,-591.0,0.0001213,2]
[403131077,1769181032632,-1432.07970287,0.0001217,4]
[403131078,1769181032642,-300.0,0.00012268,2]
[403131079,1769181032653,-300.0,0.00012268,2]
[403131080,1769181032663,-300.0,0.00012268,2]
[403131081,1769181032673,-300.0,0.00012268,2]
[403131082,1769181032684,-1200.0,0.00012268,2]
[403131083,1769181032698,-452.60759268,0.00012269,2]
[403131084,1769181032709,-500.0,0.00012269,2]
[403131085,1769181032719,-500.0,0.00012269,2]
[403131086,1769181032729,-500.0,0.00012269,2]
[403131087,1769181032738,-400.86462335,0.00012269,2]
[403131088,1769181032747,-500.0,0.00012269,2]
[403131089,1769181032757,-500.0,0.00012269,2]
[403131090,1769181032767,-500.0,0.00012269,2]
[403131091,1769181032777,-500.0,0.00012269,2]
[403131092,1769181032786,-500.0,0.00012269,2]
[403131093,1769181032797,-520.56030018,0.00012269,2]
[403131094,1769181032806,-276.40811914,0.00012269,2]
[403131095,1769181032817,-500.0,0.00012269,2]
[403131096,1769181032826,-500.0,0.00012269,2]
[403131097,1769181032836,-500.0,0.00012269,2]
[403131098,1769181032846,-468.28502607,0.00012269,2]
[403131099,1769181032855,-500.0,0.00012269,2]
[403131100,1769181032865,-402.32604118,0.00012269,2]
[403131101,1769181032875,-500.0,0.00012269,2]
[403131102,1769181032884,-500.0,0.00012269,2]
[403131103,1769181032894,-500.0,0.00012269,2]
[403131104,1769181032903,-500.0,0.00012269,2]
[403131105,1769181032914,-500.0,0.00012269,2]
[403131106,1769181032923,-500.0,0.00012269,2]
[403131107,1769181032933,-500.0,0.00012269,2]
[403131108,1769181032943,-500.0,0.00012269,2]
[403131109,1769181032955,-500.0,0.00012269,2]
[403131111,1769181032966,-500.0,0.00012269,2]
[403131112,1769181032975,-500.0,0.00012269,2]
[403131113,1769181032985,-500.0,0.00012269,2]
[403131114,1769181032994,-500.0,0.00012269,2]
[403131115,1769181033004,-500.0,0.00012269,2]
[403131116,1769181033013,-500.0,0.00012269,2]
[403131117,1769181033023,-500.0,0.00012269,2]
[403131118,1769181033032,-500.0,0.00012269,2]
[403131119,1769181033043,-401.08584045,0.00012269,2]
[403131120,1769181033052,-500.0,0.00012269,2]
[403131121,1769181033062,-500.0,0.00012269,2]
[403131122,1769181033071,-500.0,0.00012269,2]
[403131123,1769181033081,-500.0,0.00012269,2]
[403131124,1769181033091,-500.0,0.00012269,2]
[403131125,1769181033100,-37118.17774124,0.00012269,2]
[403131126,1769181033110,-941.6949467,0.00012348,2]
[403131127,1769181033120,-220.5654659,0.00012348,2]
[403131128,1769181033130,-1432.07970287,0.00012423,6]
[403131129,1769181033139,-449.65,0.00012441,2]
[403131130,1769181033149,-300.0,0.00012493,2]
[403131131,1769181033159,-300.0,0.00012493,2]
[403131132,1769181033168,-300.0,0.00012493,2]
[403131133,1769181033178,-300.0,0.00012493,2]
[403131134,1769181033189,-300.0,0.00012493,2]
[403131135,1769181033201,-300.0,0.00012493,2]
[403131136,1769181033212,-300.0,0.00012493,2]
[403131137,1769181033223,-300.0,0.00012493,2]
[403131138,1769181033233,-300.0,0.00012493,2]
[403131139,1769181033243,-300.0,0.00012493,2]
[403131141,1769181033252,-300.0,0.00012493,2]
[403131142,1769181033516,-300.0,0.00012493,2]
[403131143,1769181033526,-300.0,0.00012493,2]
[403131144,1769181033536,-300.0,0.00012493,2]
[403131145,1769181033546,-300.0,0.00012493,2]
[403131146,1769181033555,-600.0,0.00012493,2]
[403131147,1769181033564,-1432.07970287,0.00012675,8]
[403131148,1769181033573,-404.04,0.000129,2]
[403131149,1769181033583,-1432.07970287,0.00012928,10]
[403131150,1769181033592,-513.89,0.00013173,2]
[403131151,1769181033601,-1432.07970287,0.00013181,13]
[403131152,1769181033610,-1432.07970287,0.00013434,15]
[403131153,1769181033619,-420.0,0.00013464,2]
[403131154,1769181033628,-1680.0,0.00013495,2]
[403131155,1769181033638,-1432.07970287,0.00013686,17]
[403131156,1769181033647,-500.76031757,0.00013698,2]
[403131157,1769181033656,-1000.0,0.00013699,2]
[403131158,1769181033665,-192.06856669,0.00013699,2]
[403131159,1769181033675,-720.0,0.00013742,2]
[403131160,1769181033684,-578.13,0.00013904,2]
[403131161,1769181033695,-1432.07970287,0.00013939,19]
[403131162,1769181033705,-243.06554936,0.0001413,2]
[403131163,1769181033714,-1432.07970287,0.00014192,21]
[403131164,1769181033724,-941.6949467,0.00014293,2]
[403131165,1769181033734,-1432.07970287,0.00014445,24]
[403131166,1769181033743,-220.5654659,0.00014559,2]
[403131167,1769181033752,-642.36,0.00014636,2]
[403131168,1769181033762,-1432.07970287,0.00014698,26]
[403131169,1769181033771,-587.0,0.00014776,2]
[403131170,1769181033781,-890.0,0.00014844,2]
[403131171,1769181033790,-1432.07970287,0.0001495,28]
[403131172,1769181033800,-417.0,0.00014978,2]
[403131173,1769181033810,-178.0,0.00014978,2]
[403131174,1769181033819,-864.0,0.00015117,2]
[403131175,1769181033828,-1432.07970287,0.00015203,30]
[403131176,1769181033838,-155.0,0.00015354,2]
[403131177,1769181033848,-263.3816362,0.000154,2]
[403131179,1769181033857,-1432.07970287,0.00015456,32]
[403131180,1769181033867,-709.53010614,0.00015582,2]
[403131181,1769181033876,-1432.07970287,0.00015709,35]
[403131182,1769181033886,-1432.07970287,0.00015962,37]
[403131183,1769181033896,-1744.61846,0.00016,2]
[403131184,1769181033905,-280.14334503,0.0001613,2]
[403131185,1769181033915,-1432.07970287,0.00016214,39]
[403131186,1769181033925,-823.0,0.00016217,2]
[403131187,1769181033935,-941.6949467,0.00016238,2]
[403131188,1769181033946,-153.7,0.00016438,2]
[403131189,1769181033955,-500.0,0.00016438,2]
[403131190,1769181033964,-500.0,0.00016438,2]
[403131191,1769181033974,-300.88239954,0.00016438,2]
[403131192,1769181033983,-1432.07970287,0.00016467,41]
[403131193,1769181033993,-163.52,0.00016588,2]
[403131194,1769181034002,-1000.0,0.00016628,2]
[403131195,1769181034011,-263.3816362,0.00016672,17]
[403131196,1769181034021,-1432.07970287,0.0001672,43]
[403131197,1769181034030,-220.5654659,0.0001677,2]
[403131198,1769181034039,-1277.15419106,0.00016921,2]
[403131199,1769181034048,-1432.07970287,0.00016973,46]
[403131200,1769181034058,-160.0,0.00017032,2]
[403131201,1769181034067,-1041.66666667,0.00017032,2]
[403131202,1769181034076,-1432.07970287,0.00017225,48]
[403131203,1769181034085,-1432.07970287,0.00017478,50]
[403131204,1769181034095,-187.78006525,0.00017542,2]
[403131205,1769181034104,-194.72792766,0.00017542,2]
[403131206,1769181034113,-201.93286099,0.00017542,2]
[403131207,1769181034122,-209.40437684,0.00017542,2]
[403131208,1769181034132,-217.15233878,0.00017542,2]
[403131209,1769181034141,-225.18697532,0.00017542,2]
[403131210,1769181034151,-233.51889341,0.00017542,2]
[403131211,1769181034160,-242.15909246,0.00017542,2]
[403131213,1769181034169,-514.84070869,0.00017542,2]
[403131214,1769181034178,-251.11897888,0.00017542,2]
[403131215,1769181034187,-260.4103811,0.00017542,2]
[403131216,1769181034198,-270.0455652,0.00017542,2]
[403131217,1769181034207,-280.03725112,0.00017542,2]
[403131218,1769181034216,-290.39862941,0.00017542,2]
[403131219,1769181034226,-301.1433787,0.00017542,2]
[403131220,1769181034235,-198.0,0.00017542,2]
[403131221,1769181034245,-151.0,0.00017542,2]
[403131222,1769181034254,-151.0,0.00017542,2]
[403131223,1769181034263,-2487.15318209,0.00017542,2]
[403131224,1769181034273,-1432.07970287,0.00017731,52]
[403131225,1769181034282,-341.0,0.00017798,2]
[403131226,1769181034292,-153.7,0.00017803,2]
[403131227,1769181034301,-263.3816362,0.00017944,32]
[403131228,1769181034311,-178.0,0.00017978,2]
[403131229,1769181034321,-1432.07970287,0.00017984,54]
[403131230,1769181034331,-533.88981491,0.0001809,2]
[403131231,1769181034340,-2579.17784983,0.0001809,2]
[403131232,1769181034349,-317.2211407,0.0001813,2]
[403131233,1769181034359,-941.6949467,0.00018183,2]
[403131234,1769181034368,-1432.07970287,0.00018237,57]
[403131235,1769181034377,-2270.49633966,0.0001826,2]
[403131236,1769181034387,-1000.0,0.00018291,2]
[403131237,1769181034395,-244.0,0.00018291,2]
[403131238,1769181034405,-1432.07970287,0.00018489,59]
[403131239,1769181034414,-553.64373807,0.00018638,2]
[403131240,1769181034425,-2674.60743027,0.00018638,2]
[403131241,1769181034434,-1432.07970287,0.00018742,61]
[403131242,1769181034443,-220.5654659,0.00018981,2]
[403131243,1769181034454,-1432.07970287,0.00018995,63]
[403131244,1769181034464,-153.7,0.00019169,2]
[403131245,1769181034477,-244.93629427,0.00019186,2]
[403131246,1769181034486,-263.3816362,0.00019216,48]
[403131247,1769181034496,-1432.07970287,0.00019248,65]
[403131248,1769181034507,-595.59,0.0001948,3]
[403131249,1769181034518,-1191.18,0.0001949,3]
[403131250,1769181034528,-1432.07970287,0.000195,68]
[403131251,1769181034537,-3547.65053072,0.000196,2]
[403131252,1769181034551,-1432.07970287,0.00019753,70]
[403131253,1769181034561,-160.0,0.0002,14]
[403131254,1769181034570,-1432.07970287,0.00020006,72]
[403131255,1769181034580,-5638.2686001,0.0002002,2]
[403131256,1769181034590,-1000.0,0.0002012,2]
[403131257,1769181034599,-492.0,0.0002012,2]
[403131258,1769181034608,-354.29893636,0.0002013,2]
[403131259,1769181034617,-1432.07970287,0.00020259,74]
[403131260,1769181034627,-263.3816362,0.00020488,63]
[403131261,1769181034636,-1432.07970287,0.00020512,76]
[403131262,1769181034645,-153.7,0.00020534,2]
[403131263,1769181034655,-204.13,0.00020568,2]
[403131264,1769181034664,-5167.370254,0.00020568,7]
[403131265,1769181034673,-1432.07970287,0.00020764,79]
[403131266,1769181034682,-2003.9,0.00020806,2]
[403131267,1769181034692,-1191.18,0.0002085,3]
[403131268,1769181034702,-2382.36,0.0002086,3]
[403131269,1769181034712,-178.0,0.00020978,2]
[403131270,1769181034721,-3000.0,0.00021,2]
[403131271,1769181034730,-198.56,0.00021,2]
[403131272,1769181034740,-791.0,0.00021,2]
[403131273,1769181034749,-3000.0,0.0002101,2]
[403131274,1769181034759,-1432.07970287,0.00021017,81]
[403131275,1769181034768,-3000.0,0.0002102,2]
[403131276,1769181034778,-3000.0,0.0002103,2]
[403131277,1769181034788,-3000.0,0.0002104,2]
[403131278,1769181034798,-3000.0,0.0002105,2]
[403131279,1769181034807,-3000.0,0.0002106,2]
[403131280,1769181034817,-3000.0,0.0002107,2]
[403131281,1769181034826,-3000.0,0.0002108,2]
[403131282,1769181034836,-3000.0,0.0002109,2]
[403131283,1769181034845,-3000.0,0.000211,2]
[403131284,1769181034855,-3000.0,0.0002111,2]
[403131285,1769181034864,-3000.0,0.0002112,2]
[403131286,1769181034875,-3000.0,0.0002113,2]
[403131287,1769181034885,-3000.0,0.0002114,2]
[403131288,1769181034895,-3000.0,0.0002115,2]
[403131289,1769181034904,-3000.0,0.0002116,2]
[403131290,1769181034914,-3000.0,0.0002117,2]
[403131291,1769181034924,-3000.0,0.0002118,2]
[403131292,1769181034934,-3000.0,0.0002119,2]
[403131293,1769181034946,-3000.0,0.000212,2]
[403131294,1769181034957,-3000.0,0.0002121,2]
[403131295,1769181034966,-3000.0,0.0002122,2]
[403131296,1769181034976,-3000.0,0.0002123,2]
[403131297,1769181034987,-3000.0,0.0002124,2]
[403131298,1769181034997,-3000.0,0.0002125,2]
[403131299,1769181035007,-3000.0,0.0002126,2]
[403131300,1769181035016,-207.7761449,0.0002126,2]